bitfinex-derivatives/quotes_BTCF0:USTF0_20251215
["timestamp","ask_amount","ask_price","bid_price","bid_amount"]
[1765773643372,0.08163667,89657.0,89656.0,0.7054]
[1765773643670,0.08163667,89657.0,89656.0,0.008]
[1765773643871,0.08163667,89657.0,89656.0,0.42652]
[1765773644469,0.08163667,89657.0,89656.0,0.46797]
[1765773644862,0.08163667,89657.0,89656.0,0.46197]
[1765773645058,0.08163667,89657.0,89656.0,0.46697]
[1765773645258,0.08163667,89657.0,89656.0,0.42552]
[1765773645770,0.08163667,89657.0,89656.0,0.42352]
[1765773645973,0.08163667,89657.0,89656.0,0.42552]
[1765773646373,0.08163667,89657.0,89656.0,0.46697]
[1765773646672,0.08163667,89657.0,89656.0,0.11533]
[1765773649375,0.08163667,89657.0,89656.0,0.007]
[1765773650173,0.08163667,89657.0,89656.0,0.04845]
[1765773650678,0.08163667,89657.0,89656.0,0.08962]
[1765773652075,0.03902667,89657.0,89656.0,0.08962]
[1765773652276,0.00016667,89657.0,89656.0,0.08962]
[1765773652478,0.03902667,89657.0,89656.0,0.08962]
[1765773652678,0.08163667,89657.0,89656.0,0.08962]
[1765773655775,0.03902667,89657.0,89656.0,0.08962]
[1765773656076,0.00016667,89657.0,89656.0,0.08962]
[1765773656385,0.08163667,89657.0,89656.0,0.08962]
[1765773657378,0.00016667,89657.0,89656.0,0.08962]
[1765773659277,0.11575667,89657.0,89656.0,0.08962]
[1765773659880,0.11575667,89657.0,89656.0,0.73106]
[1765773660676,0.05942667,89657.0,89656.0,0.73106]
[1765773660883,0.00016667,89657.0,89656.0,0.73106]
[1765773663388,0.47639,89680.0,89679.0,0.1294711]
[1765773663581,0.47639,89680.0,89679.0,0.8284311]
[1765773664177,0.11559,89680.0,89679.0,0.8284311]
[1765773665185,0.11559,89680.0,89679.0,0.1294711]
[1765773665388,0.47639,89680.0,89679.0,0.7101511]
[1765773665581,0.47639,89680.0,89679.0,0.7695311]
[1765773665981,0.03368,89676.0,89674.0,0.1294716]
[1765773666296,0.11559,89675.0,89674.0,0.0705316]
[1765773666488,0.11559,89675.0,89674.0,0.7694516]
[1765773666691,0.11559,89675.0,89674.0,0.81724]
[1765773669299,0.05926,89675.0,89674.0,0.81724]
[1765773669483,0.48957,89680.0,89679.0,0.12255]
[1765773669791,0.3608,89680.0,89679.0,0.1337011]
[1765773670488,0.4251,89689.0,89688.0,0.1336999]
[1765773670689,0.4251,89689.0,89688.0,0.8325799]
[1765773670690,0.48957,89689.0,89688.0,0.8325799]
[1765773671591,0.51293227,89689.0,89688.0,0.8325799]
[1765773671797,0.51293227,89689.0,89688.0,0.84436497]
[1765773675194,0.51293227,89689.0,89688.0,0.7725599]
[1765773675601,0.51293227,89689.0,89688.0,0.8325799]
[1765773676594,0.51293227,89689.0,89688.0,0.0111499]
[1765773677397,0.51293227,89689.0,89688.0,0.0736799]
[1765773678095,0.51293227,89689.0,89688.0,0.1336999]
[1765773680789,0.51293227,89689.0,89688.0,0.0111499]
[1765773683901,0.51293227,89689.0,89688.0,0.1336999]
[1765773692307,0.51293227,89689.0,89688.0,0.0111499]
[1765773693697,0.51293227,89689.0,89688.0,0.0654199]
[1765773700105,0.51293227,89689.0,89688.0,0.0111499]
[1765773703318,0.51299861,89689.0,89688.0,0.0111499]
[1765773708814,0.51299861,89689.0,89688.0,0.0654199]
[1765773709516,0.51299861,89689.0,89688.0,0.0111499]
[1765773709913,0.51299861,89689.0,89688.0,0.1213999]
[1765773710118,0.02342861,89689.0,89688.0,0.1426699]
[1765773710419,1e-08,89689.0,89688.0,0.1426699]
[1765773710616,0.47346,89705.0,89704.0,0.1213979]
[1765773711409,0.50831,89705.0,89704.0,0.0111479]
[1765773712821,0.11266,89701.0,89700.0,0.7091884]
[1765773713514,0.11266,89701.0,89700.0,0.0111484]
[1765773714523,0.11266,89701.0,89700.0,0.0654184]
[1765773714822,0.11266,89701.0,89700.0,0.1213984]
[1765773716715,0.10406,89697.0,89696.0,0.00016724]
[1765773716916,0.46486,89697.0,89696.0,0.00016724]
[1765773720516,0.10406,89697.0,89696.0,0.00016724]
[1765773720727,0.46486,89697.0,89696.0,0.00016724]
[1765773731832,0.1363,89676.0,89675.0,0.1209216]
[1765773732033,0.46486,89676.0,89675.0,0.1209216]
[1765773732938,0.46486,89676.0,89675.0,0.1529216]
[1765773733338,0.46486,89676.0,89675.0,0.1579216]
[1765773733954,0.46486,89676.0,89675.0,0.1659216]
[1765773734354,0.46486,89676.0,89675.0,0.17745585]
[1765773734548,0.46486,89676.0,89675.0,0.17645585]
[1765773734759,0.46486,89676.0,89675.0,0.17545585]
[1765773736160,0.10406,89676.0,89675.0,0.17545585]
[1765773736949,0.10406,89676.0,89675.0,0.16845585]
[1765773737156,0.10406,89676.0,89675.0,0.17545585]
[1765773737652,0.46486,89676.0,89675.0,0.08854585]
[1765773737959,0.46486,89676.0,89675.0,0.14345585]
[1765773739054,0.46486,89676.0,89675.0,0.14245585]
[1765773739455,0.46486,89676.0,89675.0,0.14145585]
[1765773739657,0.46486,89676.0,89675.0,0.009]
[1765773741066,0.46486,89676.0,89675.0,0.008]
[1765773741262,0.46486,89676.0,89675.0,0.007]
[1765773742659,0.46486,89676.0,89675.0,0.005]
[1765773743363,0.10406,89673.0,89672.0,0.0111519]
[1765773744468,0.10406,89673.0,89672.0,0.1209219]
[1765773745061,0.10406,89673.0,89672.0,0.1229219]
[1765773746270,0.10406,89673.0,89672.0,0.1249219]
[1765773746770,0.10406,89673.0,89672.0,0.1259219]
[1765773751081,0.10406,89673.0,89672.0,0.0161519]
[1765773752679,0.10406,89673.0,89672.0,0.0131519]
[1765773752875,0.10406,89673.0,89672.0,0.0171519]
[1765773753676,0.10406,89673.0,89672.0,0.0633019]
[1765773753877,0.10406,89673.0,89672.0,0.0171519]
[1765773754172,0.10406,89673.0,89672.0,0.006]
[1765773754473,0.09474,89669.0,89668.0,0.0111524]
[1765773756076,0.09474,89669.0,89668.0,0.0131524]
[1765773756466,0.09474,89669.0,89668.0,0.0161524]
[1765773767382,0.09474,89669.0,89668.0,0.1107624]
[1765773774187,0.09474,89669.0,89668.0,0.0161524]
[1765773776295,0.09474,89669.0,89668.0,0.0141524]
[1765773776489,0.09474,89669.0,89668.0,0.0151524]
[1765773779981,0.06534426,89669.0,89668.0,0.0151524]
[1765773781091,0.06534426,89669.0,89668.0,0.004]
[1765773781598,0.06534426,89669.0,89668.0,0.1184]
[1765773781893,0.01828426,89669.0,89668.0,0.1184]
[1765773782096,0.3608,89675.0,89674.0,0.08808]
[1765773782097,0.44986,89675.0,89674.0,0.08808]
[1765773782285,0.44986,89675.0,89674.0,0.0992317]
[1765773783596,0.00016724,89684.0,89683.0,0.0992306]
[1765773783900,0.08906,89708.0,89707.0,0.08808]
[1765773784096,0.81066,89708.0,89707.0,0.08808]
[1765773787495,0.81766,89708.0,89707.0,0.08808]
[1765773788703,0.45686,89708.0,89707.0,0.08808]
[1765773789500,0.3678,89708.0,89707.0,0.08808]
[1765773790106,0.3608,89708.0,89707.0,0.08808]
[1765773790298,0.3648,89708.0,89707.0,0.08808]
[1765773790505,0.004,89708.0,89707.0,0.08808]
[1765773792000,0.44986,89721.0,89720.0,0.099226]
[1765773792206,0.38430806,89721.0,89720.0,0.099226]
[1765773793107,0.3668,89721.0,89720.0,0.099226]
[1765773793803,0.3608,89721.0,89720.0,0.104226]
[1765773794304,0.3608,89721.0,89720.0,0.107226]
[1765773794305,0.40336,89721.0,89720.0,0.107226]
[1765773794900,0.3608,89721.0,89720.0,0.107226]
[1765773796008,0.40336,89721.0,89720.0,0.107226]
[1765773796909,0.44986,89721.0,89720.0,0.107226]
[1765773797705,0.44986,89721.0,89720.0,0.019146]
[1765773798004,0.44986,89721.0,89720.0,0.008]
[1765773798005,0.4733186,89721.0,89720.0,0.008]
[1765773799408,0.08906,89715.0,89714.0,0.0111466]
[1765773799608,0.1125186,89715.0,89714.0,0.0111466]
[1765773799803,0.08906,89701.0,89700.0,0.08808]
[1765773800113,0.08906,89701.0,89700.0,0.13698091]
[1765773800702,0.08906,89701.0,89700.0,0.1255484]
[1765773800895,0.11526,89700.0,89688.0,0.02632]
[1765773801097,0.1387299,89700.0,89695.0,0.011149]
[1765773802409,0.1387299,89700.0,89699.0,0.00416724]
[1765773803005,0.1387299,89700.0,89699.0,0.00016724]
[1765773803710,0.1407299,89700.0,89699.0,0.00016724]
[1765773805211,0.1387299,89700.0,89699.0,0.00016724]
[1765773805416,0.1407299,89700.0,89699.0,0.00016724]
[1765773805714,0.08906,89692.0,89691.0,0.0111495]
[1765773805914,0.1125299,89692.0,89691.0,0.0111495]
[1765773806915,0.1125299,89692.0,89691.0,0.0151495]
[1765773807216,0.1125299,89692.0,89691.0,0.004]
[1765773807807,0.1125299,89692.0,89691.0,0.005]
[1765773808409,0.08204,89684.0,89683.0,0.00016724]
[1765773808614,0.4663099,89684.0,89683.0,0.00016724]
[1765773809611,0.4663099,89684.0,89683.0,0.00116724]
[1765773810015,0.4663099,89684.0,89683.0,0.00516724]
[1765773814011,0.4663099,89684.0,89683.0,0.09060724]
[1765773829227,0.4663099,89684.0,89683.0,0.04771724]
[1765773829733,0.4663099,89684.0,89683.0,0.09060724]
[1765773838452,0.1055099,89684.0,89683.0,0.09060724]
[1765773838648,0.0234699,89684.0,89683.0,0.09060724]
[1765773838844,0.10212321,89693.0,89692.0,0.0864294]
[1765773840056,0.10412321,89693.0,89692.0,0.0864294]
[1765773840444,0.10411795,89693.0,89692.0,0.0864294]
[1765773841348,0.06397795,89693.0,89692.0,0.0864294]
[1765773841860,0.06197795,89693.0,89692.0,0.0864294]
[1765773842160,0.06197795,89693.0,89692.0,0.0934294]
[1765773842460,0.10211795,89693.0,89692.0,0.0934294]
[1765773842658,0.02358795,89693.0,89692.0,0.0864294]
[1765773842855,0.02358795,89693.0,89692.0,0.0934294]
[1765773843249,0.06197795,89693.0,89692.0,0.0934294]
[1765773844652,0.06197795,89693.0,89692.0,0.0884294]
[1765773844853,0.06197795,89693.0,89692.0,0.0934294]
[1765773847059,0.10211795,89693.0,89692.0,0.0934294]
[1765773847754,0.00016724,89700.0,89699.0,0.0864286]
[1765773848268,0.43933,89712.0,89711.0,0.0864271]
[1765773849951,0.39919,89712.0,89711.0,0.0864271]
[1765773850148,0.3608,89712.0,89711.0,0.0864271]
[1765773850653,0.33140426,89712.0,89711.0,0.0864271]
[1765773850863,0.36979426,89712.0,89711.0,0.0864271]
[1765773851063,0.37279426,89712.0,89711.0,0.0864271]
[1765773851261,0.41293426,89712.0,89711.0,0.0864271]
[1765773855673,0.08153,89712.0,89711.0,0.0864271]
[1765773859172,0.44233,89712.0,89711.0,0.0111471]
[1765773859477,0.44233,89712.0,89711.0,0.0864271]
[1765773865571,0.46549,89712.0,89711.0,0.0111471]
[1765773865973,0.46549,89712.0,89711.0,0.0484271]
[1765773866380,0.46549,89712.0,89711.0,0.0864271]
[1765773867878,0.46549,89712.0,89711.0,0.0484271]
[1765773868077,0.46549,89712.0,89711.0,0.0111471]
[1765773868279,0.46549,89712.0,89711.0,0.0864171]
[1765773870482,0.44233,89712.0,89711.0,0.0864171]
[1765773870682,0.08153,89712.0,89711.0,0.0864171]
[1765773874578,0.05213426,89712.0,89711.0,0.0864171]
[1765773881687,0.07561969,89712.0,89711.0,0.0864171]
[1765773892804,0.03547969,89712.0,89711.0,0.0864171]
[1765773893206,0.07104969,89712.0,89711.0,0.0864171]
[1765773893405,0.04165394,89712.0,89711.0,0.0864171]
[1765773893606,0.07860394,89712.0,89711.0,0.0864171]
[1765773895910,0.00608394,89712.0,89711.0,0.0864171]
[1765773897008,0.08014394,89712.0,89711.0,0.0864171]
[1765773897814,0.00608394,89712.0,89711.0,0.0864171]
[1765773898204,0.43486,89729.0,89728.0,0.084395]
[1765773898709,0.43486,89729.0,89728.0,0.048345]
[1765773898921,0.43486,89729.0,89728.0,0.11805112]
[1765773899412,0.43486,89729.0,89728.0,0.12305112]
[1765773900199,0.07406,89729.0,89728.0,0.12505112]
[1765773900401,0.43486,89739.0,89738.0,0.0843937]
[1765773901012,0.43486,89739.0,89738.0,0.0111437]
[1765773901214,0.07406,89731.0,89730.0,0.00016724]
[1765773901417,0.43486,89731.0,89730.0,0.00016724]
[1765773901712,0.43486,89731.0,89730.0,0.03736724]
[1765773901912,0.43486,89731.0,89730.0,0.07341724]
[1765773902414,0.43486,89731.0,89730.0,0.00016724]
[1765773902604,0.43486,89731.0,89730.0,0.00516724]
[1765773903308,0.43486,89731.0,89730.0,0.00616724]
[1765773904718,0.43486,89731.0,89730.0,0.00516724]
[1765773904901,0.43486,89731.0,89730.0,0.00016724]
[1765773905108,0.43486,89731.0,89730.0,0.00216724]
[1765773907916,0.43486,89731.0,89730.0,0.03936724]
[1765773908420,0.43486,89731.0,89730.0,0.00216724]
[1765773909127,0.07406,89724.0,89723.0,0.0111455]
[1765773909616,0.07406,89713.0,89712.0,0.106587]
[1765773909819,0.43486,89713.0,89712.0,0.106587]
[1765773910926,0.43486,89713.0,89712.0,0.110587]
[1765773911226,0.43486,89713.0,89712.0,0.116587]
[1765773911814,0.43486,89713.0,89712.0,0.1278658]
[1765773912425,0.43486,89713.0,89712.0,0.1258658]
[1765773915423,0.79566,89713.0,89712.0,0.008]
[1765773916531,0.07406,89709.0,89708.0,0.0111474]
[1765773919225,0.07406,89709.0,89708.0,0.0121474]
[1765773921831,0.07406,89709.0,89708.0,0.001]
[1765773923525,0.07406,89709.0,89708.0,0.1075874]
[1765773923724,0.79566,89713.0,89712.0,0.106587]
[1765773923924,0.07422724,89721.0,89720.0,0.106586]
[1765773925836,0.0448315,89721.0,89720.0,0.106586]
[1765773926133,0.0448315,89721.0,89720.0,0.011146]
[1765773926331,0.0448315,89721.0,89716.0,0.0333364]
[1765773926332,0.04172,89717.0,89716.0,0.0333364]
[1765773926636,0.40252,89717.0,89716.0,0.0705364]
[1765773926832,0.40252,89717.0,89716.0,0.1065464]
[1765773927538,0.40252,89717.0,89716.0,0.0954]
[1765773928431,0.40452,89717.0,89716.0,0.0954]
[1765773929034,0.38366,89717.0,89716.0,0.0954]
[1765773929238,0.40869,89717.0,89716.0,0.0954]
[1765773934939,0.40869,89717.0,89716.0,0.02219]
[1765773935239,0.40869,89717.0,89708.0,0.02219]
[1765773935240,0.04562,89709.0,89708.0,0.02219]
[1765773935444,0.04562,89709.0,89708.0,0.05731]
[1765773935746,0.40642,89709.0,89708.0,0.09371]
[1765773936347,0.40642,89709.0,89708.0,0.09771]
[1765773936747,0.4175673,89709.0,89708.0,0.004]
[1765773937353,0.4175673,89709.0,89708.0,0.07552]
[1765773937553,0.40642,89709.0,89708.0,0.07552]
[1765773937942,0.40642,89709.0,89708.0,0.07652]
[1765773940760,0.4175673,89709.0,89708.0,0.07652]
[1765773944159,0.4175673,89709.0,89708.0,0.005]
[1765773945562,0.4175673,89709.0,89708.0,0.03712]
[1765773945865,0.4175673,89709.0,89708.0,0.07352]
[1765773946958,0.4175673,89709.0,89708.0,0.07152]
[1765773947160,0.4175673,89709.0,89708.0,0.07252]
[1765773947866,0.4175673,89709.0,89708.0,0.07552]
[1765773948267,0.4175673,89709.0,89708.0,0.07652]
[1765773951567,0.4175673,89709.0,89708.0,0.09789]
[1765773951768,0.4175673,89709.0,89708.0,0.02637]
[1765773951970,0.4175673,89709.0,89708.0,0.005]
[1765773953471,0.4175673,89709.0,89708.0,0.001]
[1765773953662,0.4175673,89709.0,89708.0,0.005]
[1765773954372,0.4185673,89709.0,89708.0,0.001]
[1765773955675,0.0422478,89705.0,89704.0,0.07168724]
[1765773956977,0.0422478,89705.0,89704.0,0.07568724]
[1765773957571,0.0422478,89705.0,89704.0,0.07668724]
[1765773957771,0.0422478,89705.0,89704.0,0.07768724]
[1765773958776,0.0422478,89705.0,89704.0,0.07868724]
[1765773961379,0.0311,89705.0,89704.0,0.07868724]
[1765773964684,0.0311,89705.0,89704.0,0.09839724]
[1765773967474,0.3608,89709.0,89708.0,0.08639]
[1765773968087,0.38385,89709.0,89708.0,0.08639]
[1765773968881,0.38385,89709.0,89708.0,0.08739]
[1765773969473,0.38385,89709.0,89708.0,0.09139]
[1765773972788,0.37249,89709.0,89708.0,0.09139]
[1765773973490,0.01169,89709.0,89708.0,0.09139]
[1765773975285,0.0296462,89718.0,89717.0,0.06668]
[1765773977593,0.0316462,89718.0,89717.0,0.06668]
[1765773979285,0.01562,89716.0,89715.0,0.01971]
[1765773979691,0.01562,89716.0,89715.0,0.05329]
[1765773979892,0.01562,89716.0,89715.0,0.08639]
[1765773980884,0.01762,89716.0,89715.0,0.08639]
[1765773985318,0.01762,89716.0,89715.0,0.01971]
[1765773985822,0.01762,89716.0,89715.0,0.05329]
[1765773986118,0.01762,89716.0,89715.0,0.08639]
[1765773987318,0.37842,89716.0,89715.0,0.08639]
[1765773993723,0.37842,89716.0,89715.0,0.01971]
[1765773994020,0.00636,89713.0,89712.0,0.01971]
[1765773995824,0.00736,89713.0,89712.0,0.01971]
[1765773997627,0.00568,89705.0,89700.0,0.01662]
[1765773997828,0.36648,89705.0,89700.0,0.01662]
[1765773998824,0.36648,89705.0,89704.0,0.02687724]
[1765774000827,0.36648,89705.0,89704.0,0.08446724]
[1765774005015,0.36364,89705.0,89704.0,0.08446724]
[1765774005221,0.3608,89705.0,89704.0,0.08446724]
[1765774008635,0.36648,89723.0,89722.0,0.05859]
[1765774011036,0.00568,89723.0,89722.0,0.05859]
[1765774011425,0.00868,89723.0,89722.0,0.05859]
[1765774011824,0.00584,89723.0,89722.0,0.05859]
[1765774012837,0.003,89723.0,89722.0,0.05859]
[1765774014436,0.00868,89723.0,89722.0,0.05859]
[1765774015341,0.003,89723.0,89722.0,0.05859]
[1765774021145,0.00868,89723.0,89722.0,0.05859]
[1765774027449,0.003,89723.0,89722.0,0.05859]
[1765774030940,0.00868,89723.0,89722.0,0.05859]
[1765774032349,0.00584,89723.0,89722.0,0.05859]
[1765774032944,0.003,89723.0,89722.0,0.05859]
[1765774033452,0.3608,89727.0,89720.0,0.0277659]
[1765774033453,0.3608,89727.0,89726.0,0.05816]
[1765774034154,0.3608,89736.0,89735.0,0.07552]
[1765774034155,0.37248,89736.0,89735.0,0.07552]
[1765774036343,0.37348,89736.0,89735.0,0.07552]
[1765774050265,0.37348,89736.0,89735.0,0.01736]
[1765774052568,0.37348,89736.0,89735.0,0.04611]
[1765774052754,0.37348,89736.0,89735.0,0.07425]
[1765774053168,0.01268,89736.0,89735.0,0.07425]
[1765774054262,0.01168,89731.0,89730.0,0.01736]
[1765774054663,0.0228252,89726.0,89725.0,0.01736]
[1765774054963,0.3836252,89726.0,89725.0,0.01736]
[1765774055359,0.3836252,89726.0,89725.0,0.04611]
[1765774055861,0.01168,89721.0,89717.0,0.0111463]
[1765774056472,0.01168,89721.0,89720.0,0.04537]
[1765774057570,0.01168,89721.0,89720.0,0.07351]
[1765774057768,0.01268,89721.0,89720.0,0.07351]
[1765774058962,0.01268,89721.0,89720.0,0.01662]
[1765774059566,0.01268,89721.0,89720.0,0.07351]
[1765774062676,0.0228265,89716.0,89715.0,0.01784]
[1765774062875,0.3836265,89716.0,89715.0,0.01784]
[1765774063666,0.3836265,89716.0,89715.0,0.04659]
[1765774063866,0.3846265,89716.0,89715.0,0.04659]
[1765774064676,0.3846265,89716.0,89715.0,0.01784]
[1765774066678,0.3846265,89716.0,89715.0,0.04659]
[1765774067069,0.3846265,89716.0,89715.0,0.01784]
[1765774067975,0.01168,89715.0,89714.0,0.00016724]
[1765774069384,0.01268,89715.0,89714.0,0.00016724]
[1765774074584,0.01168,89706.0,89700.0,0.01784]
[1765774074782,0.37248,89706.0,89700.0,0.01784]
[1765774075975,0.37248,89706.0,89705.0,0.02284]
[1765774076180,0.37248,89706.0,89705.0,0.02484]
[1765774076380,0.3836277,89706.0,89705.0,0.02484]
[1765774076580,0.3836277,89706.0,89705.0,0.05359]
[1765774076779,0.3836277,89706.0,89705.0,0.08173]
[1765774082787,0.37248,89706.0,89705.0,0.08173]
[1765774088689,0.37248,89706.0,89705.0,0.007]
[1765774089581,0.37248,89706.0,89705.0,0.005]
[1765774091191,0.0228287,89698.0,89697.0,0.00016724]
[1765774091387,0.0228296,89691.0,89690.0,0.01784]
[1765774092386,0.0228296,89691.0,89690.0,0.02084]
[1765774092686,0.0228296,89691.0,89690.0,0.003]
[1765774093078,0.0228296,89691.0,89690.0,0.01]
[1765774093583,0.0228296,89691.0,89690.0,0.008]
[1765774094586,0.0228296,89691.0,89690.0,0.001]
[1765774095080,0.0228302,89686.0,89685.0,0.04596]
[1765774095280,0.3836302,89686.0,89685.0,0.04596]
[1765774095780,0.3836302,89686.0,89685.0,0.01663]
[1765774096188,0.01168,89683.0,89682.0,0.00016724]
[1765774096698,0.01168,89683.0,89682.0,0.05752724]
[1765774096879,0.3608,89686.0,89685.0,0.07399]
[1765774097888,0.00016724,89694.0,89693.0,0.0685093]
[1765774099287,0.00016724,89694.0,89693.0,0.0785093]
[1765774101084,0.05677724,89694.0,89693.0,0.0785093]
[1765774102187,0.02773724,89694.0,89693.0,0.0785093]
[1765774102387,0.02773724,89694.0,89693.0,0.0745093]
[1765774102594,0.02773724,89694.0,89693.0,0.0775093]
[1765774103690,0.02773724,89694.0,89693.0,0.0715093]
[1765774103893,0.05677724,89694.0,89693.0,0.0775093]
[1765774107079,0.00016724,89694.0,89693.0,0.0775093]
[1765774107289,0.02956724,89694.0,89693.0,0.0775093]
[1765774108395,0.00016724,89694.0,89693.0,0.0775093]
[1765774110795,0.05687724,89694.0,89693.0,0.0775093]
[1765774114196,0.05687724,89694.0,89693.0,0.0765093]
[1765774114597,0.05687724,89694.0,89693.0,0.0755093]
[1765774118101,0.00016724,89694.0,89693.0,0.0755093]
[1765774118401,0.02879724,89694.0,89693.0,0.0755093]
[1765774119101,0.00016724,89694.0,89693.0,0.0755093]
[1765774125216,0.05687724,89694.0,89693.0,0.0755093]
[1765774125419,0.05687724,89694.0,89693.0,0.06436]
[1765774126518,0.06958724,89694.0,89693.0,0.007]
[1765774126817,0.05687724,89694.0,89693.0,0.007]
[1765774127422,0.05687724,89694.0,89693.0,0.0351]
[1765774127622,0.05687724,89694.0,89693.0,0.0331]
[1765774127918,0.05687724,89694.0,89693.0,0.0291]
[1765774128120,0.05687724,89694.0,89693.0,0.0331]
[1765774130422,0.05687724,89694.0,89693.0,0.005]
[1765774132120,0.41767724,89694.0,89693.0,0.005]
[1765774132725,0.41767724,89694.0,89693.0,0.002]
[1765774133327,0.41767724,89694.0,89693.0,0.001]
[1765774134230,0.05671,89686.0,89685.0,0.07186]
[1765774134431,0.41751,89686.0,89685.0,0.07186]
[1765774134832,0.4286602,89686.0,89685.0,0.07186]
[1765774135628,0.05671,89683.0,89682.0,0.05539724]
[1765774136830,0.05671,89683.0,89682.0,0.05739724]
[1765774137028,0.3608,89686.0,89685.0,0.07377]
[1765774138632,0.3608,89686.0,89685.0,0.07877]
[1765774139726,0.36096724,89694.0,89693.0,0.0686993]
[1765774140138,0.38893724,89694.0,89693.0,0.0686993]
[1765774140631,0.36096724,89694.0,89693.0,0.0686993]
[1765774140835,0.00016724,89694.0,89693.0,0.0686993]
[1765774141029,0.00016724,89694.0,89693.0,0.0706993]
[1765774141433,0.00016724,89694.0,89693.0,0.0756993]
[1765774142337,0.00016724,89694.0,89693.0,0.0766993]
[1765774143641,0.00016724,89694.0,89693.0,0.0786993]
[1765774144233,0.3608,89705.0,89704.0,0.0686979]
[1765774145440,0.38877,89705.0,89704.0,0.0686979]
[1765774145641,0.38877,89705.0,89704.0,0.0726979]
[1765774145838,0.41814,89705.0,89704.0,0.0726979]
[1765774146033,0.41814,89705.0,89704.0,0.06155]
[1765774146944,0.41814,89705.0,89704.0,0.06355]
[1765774147545,0.41814,89705.0,89704.0,0.05955]
[1765774147746,0.41814,89705.0,89704.0,0.06355]
[1765774158550,0.41814,89705.0,89704.0,0.006]
[1765774158952,0.41814,89705.0,89704.0,0.06355]
[1765774160648,0.05734,89705.0,89704.0,0.06355]
[1765774160848,0.41814,89705.0,89704.0,0.06355]
[1765774164155,0.43314,89705.0,89704.0,0.006]
[1765774166550,0.43314,89705.0,89704.0,0.005]
[1765774167258,0.43314,89705.0,89704.0,0.004]
[1765774167461,0.43514,89705.0,89704.0,0.001]
[1765774167857,0.0565,89693.0,89692.0,0.0674594]
[1765774168548,0.05741,89689.0,89688.0,0.0664598]
[1765774169657,0.38884,89695.0,89694.0,0.0664592]
[1765774169868,0.3608,89695.0,89694.0,0.0664592]
[1765774170253,0.38884,89695.0,89694.0,0.0664592]
[1765774170658,0.41821,89695.0,89694.0,0.0833792]
[1765774171050,0.41821,89695.0,89694.0,0.0863792]
[1765774171967,0.41821,89695.0,89694.0,0.0923792]
[1765774172556,0.41821,89695.0,89694.0,0.0863792]
[1765774172849,0.41821,89695.0,89694.0,0.0893792]
[1765774173051,0.41821,89695.0,89694.0,0.0923792]
[1765774179960,0.05741,89695.0,89694.0,0.0923792]
[1765774184456,0.05741,89695.0,89694.0,0.0833792]
[1765774184657,0.05741,89695.0,89694.0,0.0923792]
[1765774185265,0.05741,89695.0,89694.0,0.0863792]
[1765774185466,0.05741,89695.0,89694.0,0.0913792]
[1765774198878,0.38884,89701.0,89700.0,0.07332]
[1765774199476,0.41654,89701.0,89700.0,0.07332]
[1765774200176,0.41654,89701.0,89700.0,0.07732]
[1765774200377,0.41654,89701.0,89700.0,0.07932]
[1765774200878,0.41654,89701.0,89700.0,0.08032]
[1765774201478,0.3608,89701.0,89700.0,0.08032]
[1765774201674,0.41823,89701.0,89700.0,0.08032]
[1765774202685,0.41823,89701.0,89700.0,0.06363]
[1765774202878,0.41823,89701.0,89700.0,0.007]
[1765774203886,0.41823,89701.0,89700.0,0.002]
[1765774204086,0.05743,89696.0,89695.0,0.067489]
[1765774205891,0.05743,89696.0,89695.0,0.05634]
[1765774206276,0.05743,89696.0,89695.0,0.06334]
[1765774216887,0.39053,89699.0,89698.0,0.05634]
[1765774217090,0.41823,89699.0,89698.0,0.05634]
[1765774218094,0.05743,89699.0,89698.0,0.05634]
[1765774218391,0.05743,89699.0,89698.0,0.06234]
[1765774218994,0.05743,89699.0,89698.0,0.05834]
[1765774219179,0.05743,89699.0,89698.0,0.06334]
[1765774219388,0.05743,89699.0,89698.0,0.06134]
[1765774219587,0.05743,89699.0,89698.0,0.06334]
[1765774226704,0.05743,89699.0,89698.0,0.007]
[1765774227699,0.05743,89699.0,89698.0,0.005]
[1765774227899,0.41823,89699.0,89698.0,0.007]
[1765774228100,0.41823,89699.0,89698.0,0.006]
[1765774228300,0.41823,89699.0,89698.0,0.004]
[1765774228502,0.41823,89699.0,89698.0,0.006]
[1765774229302,0.41823,89699.0,89698.0,0.06397]
[1765774230905,0.05687,89684.0,89683.0,0.0111506]
[1765774232104,0.05687,89684.0,89683.0,0.0221506]
[1765774232502,0.05687,89684.0,89683.0,0.0477606]
[1765774232812,0.05687,89684.0,89683.0,0.0507606]
[1765774233501,0.05687,89684.0,89683.0,0.0487606]
[1765774235300,0.05687,89684.0,89683.0,0.03761]
[1765774236503,0.05687,89684.0,89683.0,0.03661]
[1765774237409,0.05687,89684.0,89683.0,0.0477606]
[1765774237603,0.05687,89684.0,89683.0,0.0447606]
[1765774237811,0.05687,89684.0,89683.0,0.0467606]
[1765774240402,0.00016724,89692.0,89691.0,0.05797]
[1765774240611,0.41767,89704.0,89700.0,0.01703]
[1765774240798,0.39066,89704.0,89703.0,0.0691181]
[1765774241813,0.39366,89704.0,89703.0,0.0691181]
[1765774242316,0.39066,89704.0,89703.0,0.0691181]
[1765774242514,0.39366,89704.0,89703.0,0.0691181]
[1765774243114,0.39766,89704.0,89703.0,0.0691181]
[1765774243717,0.39366,89704.0,89703.0,0.0691181]
[1765774244016,0.39066,89704.0,89703.0,0.0731181]
[1765774244315,0.41767,89704.0,89703.0,0.0741181]
[1765774244814,0.41767,89704.0,89703.0,0.06297]
[1765774245612,0.41767,89704.0,89703.0,0.005]
[1765774247412,0.41767,89704.0,89703.0,0.004]
[1765774252019,0.41767,89704.0,89703.0,0.06197]
[1765774252222,0.41767,89704.0,89703.0,0.004]
[1765774254323,0.41767,89704.0,89703.0,0.03361]
[1765774255330,0.41767,89704.0,89703.0,0.004]
[1765774255524,0.43095,89704.0,89703.0,0.004]
[1765774256521,0.43095,89704.0,89703.0,0.001]
[1765774256721,0.41767,89704.0,89703.0,0.004]
[1765774257322,0.41767,89704.0,89703.0,0.001]
[1765774257528,0.41767,89704.0,89703.0,0.03194]